bitfinex-derivatives/quotes_ETHF0:USTF0_20250606
["timestamp","ask_amount","ask_price","bid_price","bid_amount"]
[1749183485409,0.8151,2452.5,2452.4,4.82162221]
[1749183485701,0.8151,2452.5,2452.4,4.02700284]
[1749183486106,0.8151,2452.5,2452.4,3.21187284]
[1749183486410,0.8151,2452.5,2452.4,4.82298688]
[1749183486806,0.8151,2452.5,2452.4,1.61596364]
[1749183487108,5.8151,2452.5,2452.4,0.00407284]
[1749183487309,7.1603,2452.5,2452.4,0.00407284]
[1749183487809,7.1603,2452.5,2452.0,1.6118908]
[1749183487810,0.81523,2452.1,2452.0,1.6118908]
[1749183488711,0.81518,2452.3,2452.0,3.23184281]
[1749183489007,0.8152,2452.2,2452.1,4.82130116]
[1749183489203,4.4964,2452.6,2452.1,4.82130116]
[1749183489204,5.838,2452.6,2452.1,4.82130116]
[1749183489411,0.8152,2452.2,2452.1,4.82130116]
[1749183489712,0.8152,2452.2,2452.1,1.61350116]
[1749183490409,0.81523,2452.1,2452.0,1.61350116]
[1749183490808,1.3533,2452.2,2451.8,4.82292504]
[1749183491012,0.8153,2451.9,2451.8,4.82292504]
[1749183491214,5.8463,2451.9,2451.8,4.82292504]
[1749183491415,14.5921,2451.9,2451.5,2.41660281]
[1749183491718,0.81553,2451.2,2451.1,5.62440281]
[1749183492312,0.81553,2451.2,2451.1,3.2078]
[1749183492716,0.81552,2451.3,2451.1,5.62440281]
[1749183492901,0.70040923,2451.4,2451.1,3.2078]
[1749183493105,5.03810923,2451.4,2451.1,6.43994281]
[1749183493313,0.8155,2451.3,2451.1,4.5532]
[1749183493514,0.81553,2451.2,2451.1,3.2078]
[1749183494510,0.00610923,2451.4,2451.2,0.81553]
[1749183494709,0.00610923,2451.4,2451.3,0.8155]
[1749183495214,0.00610923,2451.4,2451.2,4.53291281]
[1749183495908,0.82157923,2451.4,2451.1,6.43994281]
[1749183496110,0.8155,2451.3,2451.1,3.2078]
[1749183496309,0.81553,2451.2,2451.1,3.2078]
[1749183498117,0.82159923,2451.4,2451.1,3.2078]
[1749183498313,0.00610923,2451.4,2451.3,0.8155]
[1749183499805,0.00610923,2451.4,2451.3,5.8155]
[1749183500007,5.033,2452.0,2451.8,0.81533]
[1749183500208,4.02306,2452.1,2451.8,0.81531]
[1749183500405,3.2078,2452.1,2451.6,3.2078]
[1749183500604,0.81525,2452.1,2451.9,3.2078]
[1749183500914,0.81532,2451.9,2451.8,0.00610923]
[1749183503412,5.81532,2451.9,2451.8,0.00610923]
[1749183503612,0.81546,2451.4,2451.3,3.2078]
[1749183504312,0.6681,2451.6,2451.3,4.02328]
[1749183504612,0.81546,2451.4,2451.3,3.2078]
[1749183504812,0.81553,2451.2,2451.0,3.2078]
[1749183505015,0.81553,2451.2,2451.0,4.02339]
[1749183505404,0.81553,2451.2,2451.0,3.2078]
[1749183505609,5.033,2451.1,2450.8,2.41660281]
[1749183505809,6.3127,2451.1,2450.4,5.62440281]
[1749183506009,0.81573,2450.7,2450.4,6.44019281]
[1749183506211,0.65080923,2451.0,2450.4,5.62440281]
[1749183506516,0.81571,2450.7,2450.4,6.44017281]
[1749183506818,0.81571,2450.7,2450.4,4.02359]
[1749183507317,0.65080923,2451.0,2450.4,4.02359]
[1749183507318,0.00610923,2451.0,2450.4,3.2078]
[1749183507518,0.81567,2450.8,2450.5,2.10623]
[1749183507818,0.81572,2450.7,2450.4,6.44018281]
[1749183508024,0.81574,2450.6,2450.4,3.2078]
[1749183508214,0.81572,2450.7,2450.4,4.02358]
[1749183508613,0.81572,2450.7,2450.5,0.81576]
[1749183508918,0.82172923,2451.0,2450.7,0.81569]
[1749183509220,0.82172923,2451.0,2450.7,4.02349]
[1749183509416,0.81563,2450.9,2450.7,4.02349]
[1749183509813,0.00610923,2451.0,2450.7,3.2078]
[1749183510014,0.00610923,2451.0,2450.9,0.81563]
[1749183510212,0.81563,2450.9,2450.8,0.6948]
[1749183511017,0.00610923,2451.0,2450.6,0.81573]
[1749183511519,0.81565,2450.9,2450.7,0.81569]
[1749183511918,0.81565,2450.9,2450.6,2.07081]
[1749183512518,0.00610923,2451.0,2450.7,3.2078]
[1749183512718,0.00610923,2451.0,2450.8,1.9335]
[1749183512918,0.00610923,2451.0,2450.8,0.6323]
[1749183512919,0.81563,2450.9,2450.8,0.6323]
[1749183513317,0.81566,2450.8,2450.7,3.2078]
[1749183513815,0.81573,2450.6,2450.5,0.6948]
[1749183514015,0.81571,2450.7,2450.5,0.6948]
[1749183514219,0.00610923,2451.0,2450.4,3.2078]
[1749183514220,0.81576,2450.5,2450.4,3.2078]
[1749183517014,0.81586,2450.2,2450.1,6.96310281]
[1749183517215,0.81586,2450.2,2450.1,4.5465]
[1749183517417,0.81586,2450.2,2450.1,3.8523]
[1749183517616,5.035,2450.2,2449.8,6.28370281]
[1749183517821,5.035,2450.2,2449.8,3.2078]
[1749183517822,0.81596,2449.9,2449.8,3.2078]
[1749183520423,0.81603,2449.7,2449.6,0.6908]
[1749183521025,0.81606,2449.6,2449.5,3.2078]
[1749183521223,1.3436,2449.9,2449.5,3.2078]
[1749183521628,0.81606,2449.6,2449.5,3.2078]
[1749183521920,1.3436,2449.9,2449.5,3.2078]
[1749183522120,5.082,2449.9,2449.5,3.2078]
[1749183522322,0.81606,2449.6,2449.5,3.2078]
[1749183523219,5.082,2449.9,2449.5,3.2078]
[1749183523425,5.082,2449.8,2449.5,3.2078]
[1749183523626,0.81606,2449.6,2449.5,3.2078]
[1749183525825,0.81613,2449.4,2449.3,0.6477]
[1749183526222,0.81616,2449.3,2449.2,3.2078]
[1749183526426,0.81619,2449.2,2449.1,0.6905]
[1749183526725,0.81619,2449.2,2448.9,4.67837]
[1749183526921,5.1489,2449.5,2448.9,4.67837]
[1749183527128,5.1489,2449.5,2449.0,0.81626]
[1749183527324,0.81621,2449.2,2448.9,6.00687]
[1749183527525,0.81618,2449.3,2449.0,0.81626]
[1749183527831,5.1489,2449.5,2449.0,0.81626]
[1749183528628,0.00612207,2449.6,2449.2,3.2078]
[1749183528831,0.00612207,2449.6,2449.4,0.81611]
[1749183529225,0.00612207,2449.6,2449.3,0.88747351]
[1749183529428,0.82219207,2449.6,2449.4,1.45513]
[1749183529735,0.00612207,2449.6,2449.4,2.09251]
[1749183529941,0.00612207,2449.6,2449.5,0.8161]
[1749183530235,0.00612207,2449.6,2449.5,4.0239]
[1749183530941,0.00612207,2449.6,2449.5,5.3219]
[1749183531334,0.00612207,2449.6,2449.5,4.0239]
[1749183531537,5.00612207,2449.6,2449.3,0.07133351]
[1749183531740,0.81613,2449.4,2449.3,0.07133351]
[1749183532447,2.13483,2449.4,2449.3,0.07133351]
[1749183533548,0.81613,2449.4,2449.3,0.07133351]
[1749183533849,2.18993,2449.4,2449.3,0.07133351]
[1749183534244,0.81629,2448.9,2448.8,3.2078]
[1749183534544,0.81635,2448.8,2448.5,4.02422]
[1749183534739,0.81635,2448.8,2448.5,3.2078]
[1749183535147,5.083,2449.1,2448.5,3.2078]
[1749183535148,0.81639,2448.7,2448.5,3.2078]
[1749183535342,2.017,2449.0,2448.5,3.2078]
[1749183535644,0.81639,2448.6,2448.5,3.2078]
[1749183535847,3.2078,2449.1,2448.5,3.2078]
[1749183536043,3.2078,2449.4,2448.8,3.2078]
[1749183536244,3.2078,2449.4,2449.3,0.07133351]
[1749183536640,4.02393,2449.4,2449.3,0.07133351]
[1749183538452,0.81613,2449.4,2449.3,0.07133351]
[1749183538949,2.10863,2449.4,2449.3,0.07133351]
[1749183539543,5.90013,2449.4,2449.3,0.07133351]
[1749183540443,0.81613,2449.4,2449.3,0.07133351]
[1749183540645,5.90013,2449.4,2449.3,0.07133351]
[1749183541446,0.00612207,2449.6,2449.3,0.07133351]
[1749183541650,0.00612207,2449.6,2449.4,0.678]
[1749183541950,0.00612207,2449.6,2449.4,2.80402]
[1749183542556,0.82218207,2449.6,2449.4,1.9879]
[1749183542952,0.00612207,2449.6,2449.4,2.80401]
[1749183543653,0.00612207,2449.6,2449.5,1.6141787]
[1749183543948,0.00612207,2449.6,2449.5,2.9853787]
[1749183544154,0.00612207,2449.6,2449.5,3.8014687]
[1749183544354,0.00612207,2449.6,2449.5,5.39509]
[1749183544746,0.00612207,2449.6,2449.5,7.81169281]
[1749183544948,0.00612207,2449.6,2449.5,5.39509]
[1749183545147,24.686,2450.2,2449.5,9.579]
[1749183545342,0.8159,2450.1,2450.0,3.2078]
[1749183545647,0.81593,2450.0,2449.8,2.25352302]
[1749183545954,0.81593,2450.0,2449.9,2.26732302]
[1749183546548,0.81596,2449.9,2449.8,1.61882302]
[1749183546953,0.81599,2449.8,2449.7,4.83274509]
[1749183547153,1.3807,2450.1,2449.8,0.81598]
[1749183547154,0.81594,2450.0,2449.8,0.81598]
[1749183547350,0.81594,2450.0,2449.8,1.61882302]
[1749183547546,0.00612207,2450.2,2449.9,1.61882302]
[1749183547751,0.00612207,2450.2,2450.0,2.43473302]
[1749183547952,0.81589,2450.1,2450.0,2.99862302]
[1749183548151,0.81589,2450.1,2450.0,1.3798]
[1749183548545,0.81589,2450.1,2450.0,3.00040656]
[1749183548947,0.00612207,2450.2,2450.0,3.81632656]
[1749183549258,0.00612207,2450.2,2450.1,2.43659215]
[1749183549451,0.00612207,2450.2,2450.1,4.40209215]
[1749183549757,0.82198207,2450.2,2450.1,3.58620215]
[1749183550351,0.82198207,2450.2,2450.1,0.641]
[1749183550550,0.81589,2450.1,2450.0,1.62070215]
[1749183551556,0.81593,2450.0,2449.9,1.6202433]
[1749183551754,0.81593,2450.0,2449.3,4.1117722]
[1749183551755,52.2008,2450.0,2448.8,7.27278964]
[1749183551953,3.2078,2449.3,2448.4,6.44015095]
[1749183552150,0.81624,2449.1,2448.7,0.81633]
[1749183552551,1.2617,2449.2,2448.4,6.44015095]
[1749183552952,3.2078,2449.4,2448.4,6.44015095]
[1749183553158,0.81621,2449.2,2448.8,0.81631]
[1749183553359,0.81618,2449.3,2448.9,0.81627]
[1749183553557,0.8162,2449.2,2448.9,0.81627]
[1749183553757,3.2078,2449.4,2448.7,3.2078]
[1749183553960,3.2078,2449.4,2448.7,4.02413]
[1749183554163,3.2078,2449.4,2448.8,0.8163]
[1749183554356,0.81618,2449.3,2448.7,3.2078]
[1749183554564,3.2078,2449.4,2449.0,4.02405]
[1749183554757,3.2078,2449.4,2449.1,0.81622]
[1749183555063,0.81617,2449.3,2449.0,0.81624]
[1749183555262,0.8162,2449.2,2448.9,0.81627]
[1749183555557,3.2078,2449.4,2449.3,0.07133351]
[1749183555761,2.0321,2449.6,2449.3,0.07133351]
[1749183555956,0.81613,2449.4,2449.3,0.07133351]
[1749183556462,0.81611,2449.5,2449.3,0.07133351]
[1749183556659,2.0321,2449.6,2449.3,0.07133351]
[1749183556857,0.6714,2449.6,2449.3,0.07133351]
[1749183557260,0.8161,2449.5,2449.3,0.07133351]
[1749183557462,0.81613,2449.4,2449.3,0.07133351]
[1749183558359,2.10303,2449.4,2449.3,0.07133351]
[1749183559456,1.2869,2449.4,2449.3,0.07133351]
[1749183559657,2.10303,2449.4,2449.3,0.07133351]
[1749183560461,1.2869,2449.4,2449.3,0.07133351]
[1749183561157,2.10303,2449.4,2449.3,0.07133351]
[1749183561662,0.6714,2449.6,2449.4,0.8161]
[1749183561861,0.6714,2449.6,2449.4,0.81613]
[1749183562060,1.48747,2449.6,2449.4,0.81613]
[1749183562366,3.2078,2450.1,2449.4,5.27267095]
[1749183562563,3.2078,2450.1,2449.6,3.2078]
[1749183562755,0.00612207,2450.2,2450.1,0.81589]
[1749183566362,0.00612207,2450.2,2450.1,2.18279]
[1749183567768,0.00612207,2450.2,2450.0,0.6969]
[1749183568167,0.00612207,2450.2,2450.0,1.51279]
[1749183568666,0.00612207,2450.2,2450.1,0.81589]
[1749183569370,0.00612207,2450.2,2450.0,1.51281]
[1749183570475,0.82199207,2450.2,2450.0,1.51281]
[1749183570664,0.00612207,2450.2,2450.0,1.51281]
[1749183570868,0.82199207,2450.2,2450.0,1.51281]
[1749183571375,0.81589,2450.1,2450.0,0.6969]
[1749183572079,0.00612207,2450.2,2449.9,2.42714723]
[1749183572080,0.81593,2450.0,2449.9,2.42714723]
[1749183572273,0.81596,2449.9,2449.8,2.42714723]
[1749183572473,0.81594,2450.0,2449.8,2.42714723]
[1749183572674,0.81594,2450.0,2449.8,3.24312723]
[1749183572976,2.0443,2450.1,2449.8,2.42714723]
[1749183573168,0.81599,2449.8,2449.6,3.24318723]
[1749183573373,0.81601,2449.8,2449.6,3.91220723]
[1749183574475,0.81598,2449.9,2449.7,0.81603]
[1749183574978,2.09194,2450.0,2449.7,2.42714723]
[1749183575174,0.81599,2449.8,2449.7,2.42714723]
[1749183575679,0.81606,2449.6,2449.5,5.63494723]
[1749183575872,0.81606,2449.6,2449.4,5.9351]
[1749183575873,0.81609,2449.5,2449.4,2.42714723]
[1749183576177,0.81609,2449.5,2449.3,0.6811]
[1749183576178,0.81613,2449.4,2449.3,2.42714723]
[1749183576381,0.81616,2449.3,2449.1,2.42714723]
[1749183576780,0.81616,2449.3,2449.1,3.24336723]
[1749183577581,0.81616,2449.3,2449.1,0.81622]
[1749183577983,0.81616,2449.3,2449.0,3.92448723]
[1749183578183,0.81615,2449.4,2449.1,0.81621]
[1749183578383,0.81617,2449.3,2449.1,0.81621]
[1749183578585,2.1951,2449.2,2449.0,3.92448723]
[1749183578783,1.3789,2449.2,2449.0,3.92448723]
[1749183579482,0.81615,2449.4,2449.1,0.81623]
[1749183579682,0.81616,2449.3,2449.1,0.81623]
[1749183579985,2.21004,2449.4,2449.0,3.10824723]
[1749183580286,0.81616,2449.3,2449.1,3.24335723]
[1749183580585,1.3939,2449.3,2449.1,3.24335723]
[1749183581386,1.3939,2449.3,2449.2,0.81619]
[1749183581583,0.6819,2449.7,2449.1,2.42714723]
[1749183581778,0.81606,2449.6,2449.3,0.81615]
[1749183582086,0.81616,2449.4,2449.2,2.42714723]
[1749183582274,0.81616,2449.4,2449.1,2.42714723]
[1749183582774,0.81616,2449.4,2449.2,0.81619]
[1749183583886,2.18981,2449.5,2449.2,0.81619]
[1749183584081,0.81613,2449.4,2449.2,0.81619]
[1749183584281,2.1898,2449.5,2449.2,2.42714723]
[1749183584480,2.1898,2449.5,2449.2,3.24330723]
[1749183584784,3.8897,2449.7,2449.3,2.42714723]
[1749183584981,0.81608,2449.6,2449.3,0.81613]
[1749183585281,1.3422,2449.6,2449.3,2.42714723]
[1749183585486,1.3422,2449.6,2449.3,5.63494723]
[1749183585687,3.8897,2449.7,2449.6,0.81606]
[1749183585883,4.70573,2449.7,2449.5,0.81608]
[1749183586089,3.2078,2449.7,2449.6,0.81606]
[1749183587180,0.816,2449.8,2449.6,0.81606]
[1749183587785,2.0057,2450.0,2449.5,3.10844723]
[1749183587990,0.81601,2449.8,2449.5,3.10844723]
[1749183588288,0.81601,2449.8,2449.6,0.81604]
[1749183589188,3.2078,2450.1,2450.0,0.81593]
[1749183589389,0.81599,2449.8,2449.7,2.42714723]
[1749183589588,0.81598,2449.9,2449.7,0.81602]
[1749183589984,0.81598,2449.9,2449.7,0.81601]
[1749183590290,0.81598,2449.9,2449.8,1.62058946]
[1749183591090,0.81599,2449.8,2449.7,1.62058946]
[1749183591286,2.75499,2449.8,2449.7,1.62058946]
[1749183591488,5.96279,2449.8,2449.7,1.62058946]
[1749183592287,2.75499,2449.8,2449.7,1.62058946]
[1749183592491,1.939,2449.8,2449.7,2.43661946]
[1749183592687,0.81595,2450.0,2449.9,0.81596]
[1749183592893,3.2078,2450.1,2449.9,0.81596]
[1749183592894,3.2078,2450.1,2449.9,1.62054944]
[1749183593094,0.81595,2450.0,2449.9,1.62054944]
[1749183593290,2.08355,2450.0,2449.9,1.62054944]
[1749183593786,2.08353,2450.0,2449.8,3.24312723]
[1749183593990,2.08353,2450.0,2449.9,1.62004058]
[1749183594592,2.08353,2450.0,2449.8,3.24311723]
[1749183594794,3.2078,2450.1,2449.9,2.42714723]
[1749183594982,0.82200207,2450.2,2450.0,2.43616046]
[1749183595187,0.82200207,2450.2,2450.0,2.28773046]
[1749183595390,0.00612207,2450.2,2450.1,1.62023046]
[1749183595685,0.00612207,2450.2,2450.1,4.02369]
[1749183595883,0.00612207,2450.2,2450.1,6.06099]
[1749183596093,0.00612207,2450.2,2450.1,9.29334095]
[1749183598692,6.68058,2450.8,2450.5,0.81574]
[1749183598990,0.81568,2450.8,2450.6,2.43518294]
[1749183599295,0.81568,2450.8,2450.7,1.61946294]
[1749183599495,1.2944,2450.8,2450.7,1.61946294]
[1749183599692,0.6808,2450.9,2450.8,0.81566]
[1749183600086,3.21392207,2451.0,2450.7,1.61946294]
[1749183600286,3.21392207,2451.0,2450.8,1.61946294]
[1749183600491,5.38743207,2451.0,2450.8,1.61946294]
[1749183600691,4.57182207,2451.0,2450.8,2.43512294]
[1749183600887,4.57182207,2451.0,2450.9,0.81563]
[1749183601093,0.00612207,2451.0,2450.9,0.81563]
[1749183602195,0.00612207,2451.0,2450.9,3.23988324]
[1749183602394,0.00612207,2451.0,2450.9,0.81563]
[1749183602800,0.00612207,2451.0,2450.9,2.42214438]
[1749183602991,0.00612207,2451.0,2450.9,1.6148861]
[1749183603191,1.36402207,2451.0,2450.9,1.6148861]
[1749183603395,2.17961207,2451.0,2450.9,1.6148861]
[1749183603599,2.17961207,2451.0,2450.6,1.6148861]
[1749183603600,6.36402207,2451.0,2450.6,1.6148861]
[1749183603891,0.81568,2450.8,2450.5,3.13105817]
[1749183604097,2.1668,2450.7,2450.5,2.31530817]
[1749183604294,0.81573,2450.6,2450.5,0.70042207]
[1749183604495,2.16683,2450.6,2450.5,0.70042207]
[1749183605398,1.3511,2450.6,2450.5,0.70042207]
[1749183605600,2.16683,2450.6,2450.5,0.70042207]
[1749183606394,2.16683,2450.6,2450.5,0.00612207]
[1749183607798,1.3511,2450.6,2450.5,0.00612207]
[1749183608194,3.2078,2450.8,2450.5,0.00612207]
[1749183608393,3.2078,2450.8,2450.7,0.81569]
[1749183608795,0.82173207,2451.0,2450.7,1.6148861]
[1749183608796,0.82172207,2451.0,2450.7,1.6148861]
[1749183609101,0.82172207,2451.0,2450.6,2.2494861]
[1749183609102,0.81569,2450.7,2450.6,2.2494861]
[1749183609305,0.81569,2450.7,2450.6,0.6346]
[1749183609699,1.275,2450.9,2450.5,1.62100817]
[1749183609904,0.8157,2450.7,2450.5,0.00612207]
[1749183610197,0.81573,2450.6,2450.5,0.00612207]
[1749183610402,2.07863,2450.6,2450.5,0.00612207]
[1749183610597,1.2629,2450.6,2450.5,0.00612207]
[1749183610906,2.07863,2450.6,2450.5,0.00612207]
[1749183611100,1.2629,2450.6,2450.5,0.82188207]
[1749183611297,0.6348,2450.8,2450.5,2.43676817]
[1749183611500,1.45049,2450.8,2450.5,2.43676817]
[1749183611799,0.81571,2450.7,2450.5,0.00612207]
[1749183612004,2.07861,2450.7,2450.5,1.62100817]
[1749183612203,2.07861,2450.7,2450.5,2.43676817]
[1749183612707,1.2629,2450.7,2450.6,0.81573]
[1749183612893,0.6348,2450.8,2450.7,0.81569]
[1749183613294,0.81569,2450.7,2450.6,1.6148861]
[1749183613493,1.3024,2450.7,2450.5,2.43675817]
[1749183613693,1.3024,2450.7,2450.6,2.4306161]
[1749183613897,1.3024,2450.7,2450.6,1.6148861]
[1749183614105,0.81573,2450.6,2450.5,0.00612207]
[1749183614603,2.11813,2450.6,2450.5,0.00612207]
[1749183616014,2.11813,2450.6,2450.5,1.62100817]
[1749183616207,1.3024,2450.6,2450.5,2.43676817]
[1749183617710,0.6348,2450.8,2450.5,2.43676817]
[1749183617711,1.45048,2450.8,2450.5,1.62100817]
[1749183617902,1.45048,2450.8,2450.6,2.4306161]
[1749183618103,1.3773,2450.9,2450.6,1.6148861]
[1749183618303,1.3773,2450.9,2450.8,0.81566]
[1749183618607,0.00612207,2451.0,2450.9,0.88696351]
[1749183618903,0.00612207,2451.0,2450.9,4.78326351]
[1749183619207,0.00612207,2451.0,2450.9,8.01561446]
[1749183619609,0.81538,2451.7,2450.9,8.8963]
[1749183619803,0.81538,2451.7,2451.4,2.43093865]
[1749183620107,1.3513,2451.7,2451.6,1.61550865]
[1749183620605,4.02315,2451.8,2451.6,1.61550865]
[1749183620606,3.2078,2451.8,2451.6,0.81539]
[1749183620811,3.2078,2451.8,2451.7,0.81536]
[1749183621004,0.64602207,2451.9,2451.7,0.81536]
[1749183621204,0.64602207,2451.9,2451.7,1.61550865]
[1749183621403,0.81533,2451.8,2451.7,1.61550865]
[1749183621607,0.81533,2451.8,2451.6,3.11938865]
[1749183621904,0.81539,2451.6,2451.5,1.61550865]
[1749183622206,0.81538,2451.7,2451.5,1.61550865]
[1749183622907,2.07245,2451.8,2451.6,0.81539]
[1749183623206,2.07245,2451.8,2451.7,0.81536]
[1749183623207,1.2571,2451.8,2451.7,0.81536]
[1749183623408,0.64602207,2451.9,2451.6,1.61550865]
[1749183623609,1.90312207,2451.9,2451.7,2.43085865]
[1749183624104,1.90312207,2451.9,2451.7,1.61550865]
[1749183624313,1.90312207,2451.9,2451.6,1.61550865]
[1749183624503,0.81535,2451.8,2451.7,1.61550865]
[1749183624702,0.81536,2451.7,2451.6,1.61550865]
[1749183624905,0.81543,2451.5,2451.4,1.61550865]
[1749183625112,5.1082,2451.8,2451.3,2.42326298]
[1749183625113,1.2606,2451.6,2451.3,1.61550865]
[1749183625507,0.81543,2451.5,2451.3,1.61550865]
[1749183625808,1.2606,2451.4,2451.3,2.43099865]
[1749183626411,1.2606,2451.4,2451.3,0.81549]
[1749183626613,1.2606,2451.4,2451.3,1.61640947]
[1749183626812,1.2606,2451.4,2451.3,2.43189947]
[1749183627320,0.8154,2451.6,2451.2,2.42326298]
[1749183627513,0.8154,2451.6,2451.3,2.43184975]
[1749183627715,0.81546,2451.4,2451.3,1.61636975]
[1749183628014,1.3562,2451.5,2451.3,1.61636975]
[1749183628207,2.17165,2451.5,2451.3,1.61636975]
[1749183628409,2.17165,2451.5,2451.3,2.43185975]
[1749183630208,2.17165,2451.5,2450.9,3.23101731]
[1749183630209,3.2078,2451.4,2451.1,1.61636975]
[1749183630408,0.81554,2451.2,2450.9,1.61636975]
[1749183630608,2.0414,2451.3,2451.0,1.61636975]
[1749183630609,0.81556,2451.1,2451.0,1.61636975]
[1749183630906,0.81559,2451.0,2450.9,1.61636975]
[1749183631110,0.81563,2450.9,2450.8,1.61636975]
[1749183631313,0.81566,2450.8,2450.7,2.27866975]
[1749183631617,0.81569,2450.7,2450.6,1.61636975]
[1749183632616,2.19529,2450.7,2450.6,1.61636975]
[1749183637626,0.81573,2450.6,2450.5,1.62249182]
[1749183637815,3.54403,2450.6,2450.5,2.07e-06]
[1749183638115,2.03945,2450.5,2450.0,1.61636975]
[1749183638320,3.2078,2450.2,2450.0,1.61636975]
[1749183638619,2.19409,2450.1,2450.0,1.61636975]
[1749183639323,0.81593,2450.0,2449.9,1.61636975]
[1749183639521,2.19413,2450.0,2449.9,1.61636975]
[1749183639721,2.19413,2450.0,2449.9,2.43232975]
[1749183639722,1.3782,2450.0,2449.9,2.43232975]
[1749183640022,0.82196207,2450.3,2450.0,0.81589]
[1749183640211,0.8159,2450.1,2450.0,1.61636975]
[1749183640416,0.81593,2450.0,2449.9,1.61636975]
[1749183640821,0.81596,2449.9,2449.8,1.62249182]
[1749183641418,0.81596,2449.9,2449.8,0.00612207]
[1749183641723,2.12816,2449.9,2449.8,0.00612207]
[1749183649131,0.81596,2449.9,2449.8,0.00612207]
[1749183650132,0.81596,2449.9,2449.8,0.07745558]
[1749183651627,0.6745,2450.0,2449.8,0.07745558]
[1749183651628,1.49045,2450.0,2449.8,0.07745558]
[1749183651829,0.6745,2450.0,2449.8,0.07745558]
[1749183652029,1.49044,2450.0,2449.8,0.89343558]
[1749183652230,1.49044,2450.0,2449.9,0.6279]
[1749183652430,0.81594,2450.0,2449.9,0.6279]
[1749183653032,0.81591,2450.1,2449.9,1.44384]
[1749183653332,3.2078,2450.2,2449.9,0.6279]
[1749183653535,0.81593,2450.0,2449.9,0.6279]
[1749183654435,0.81591,2450.1,2449.9,1.44386]
[1749183654827,0.81593,2450.0,2449.9,0.6279]
[1749183655232,0.81596,2449.9,2449.8,0.07745558]
[1749183655432,2.19366,2449.9,2449.8,0.07745558]
[1749183658944,0.81596,2449.9,2449.8,0.07745558]
[1749183659237,2.15066,2449.9,2449.8,0.07745558]
[1749183662042,3.2078,2450.0,2449.8,0.07745558]
[1749183662043,4.02374,2450.0,2449.8,2.50981533]
[1749183662344,3.2078,2450.0,2449.8,2.50981533]
[1749183662640,4.02374,2450.0,2449.8,1.69382533]
[1749183662838,0.81596,2449.9,2449.8,1.69382533]
[1749183663039,0.81596,2449.9,2449.8,0.07745558]
[1749183663343,0.81596,2449.9,2449.2,3.23101731]
[1749183663344,0.81612,2449.4,2449.3,1.61636975]
[1749183663549,0.81612,2449.4,2449.1,2.42326298]
[1749183663550,0.81619,2449.2,2449.1,1.61636975]
[1749183663839,0.81626,2449.0,2448.9,2.42326298]
[1749183664038,0.81626,2449.0,2448.8,0.6335]
[1749183664039,0.81628,2449.0,2448.8,3.05676298]
[1749183664339,1.2755,2449.1,2448.8,3.87307298]
[1749183664541,0.81626,2449.0,2448.8,1.44981]
[1749183664735,0.81626,2449.0,2448.8,3.87307298]
[1749183664932,0.81626,2449.0,2448.8,3.05676298]
[1749183665137,1.2755,2449.1,2448.8,3.05676298]
[1749183665338,0.81628,2449.0,2448.8,3.05676298]
[1749183665543,0.81628,2449.0,2448.8,1.44982]
[1749183665848,0.81628,2449.0,2448.8,3.87308298]
[1749183666145,0.81628,2449.0,2448.8,3.05676298]
[1749183666539,0.81629,2449.0,2448.8,3.05676298]
[1749183666740,0.81632,2448.8,2448.7,2.42326298]
[1749183667045,3.2078,2448.8,2448.6,2.42326298]
[1749183667244,0.81637,2448.7,2448.5,2.42326298]
[1749183667746,2.09847,2448.7,2448.5,2.42326298]
[1749183667942,2.09847,2448.7,2448.4,3.23970298]
[1749183668148,4.02414,2448.8,2448.5,0.81641]
[1749183668351,0.81636,2448.7,2448.4,3.23970298]
[1749183668544,5.30625,2448.8,2448.5,0.81642]
[1749183668844,4.4899,2448.8,2448.4,2.42326298]
[1749183669051,3.2078,2448.8,2448.7,0.81636]
[1749183669346,3.2078,2448.8,2448.6,0.81637]
[1749183669948,0.81646,2448.4,2448.3,0.6732]
[1749183670250,0.81645,2448.5,2448.2,2.42326298]
[1749183670437,1.325,2448.4,2448.3,0.81649]
[1749183670747,3.2078,2448.8,2448.2,2.42326298]
[1749183670945,0.81645,2448.5,2448.2,0.81651]
[1749183671246,2.0107,2448.6,2448.1,6.44760298]
[1749183671546,3.2078,2448.8,2448.2,2.42326298]
[1749183671847,0.81651,2448.3,2448.1,5.63106298]
[1749183672151,0.81647,2448.4,2448.1,3.2078]
[1749183672343,0.81647,2448.4,2448.1,4.02434]
[1749183672541,2.14147,2448.4,2448.2,0.81652]
[1749183672756,2.14146,2448.4,2448.1,3.2078]
[1749183673051,1.325,2448.4,2448.2,0.81651]
[1749183673249,2.14148,2448.4,2448.1,4.02434]
[1749183673841,3.2078,2448.5,2448.1,3.2078]
[1749183674248,4.5965,2448.5,2448.1,4.02435]
[1749183674652,0.8165,2448.3,2448.1,4.02435]
[1749183674946,4.5965,2448.5,2448.1,4.02435]
[1749183674947,4.5965,2448.5,2448.1,3.2078]
[1749183675153,0.81652,2448.3,2448.1,3.2078]
[1749183675450,0.81652,2448.3,2448.1,4.02435]
[1749183675846,3.2078,2448.5,2448.1,3.2078]
[1749183676066,0.00612207,2449.0,2448.9,0.81629]
[1749183676441,2.0798,2449.8,2449.0,2.04063]
[1749183676640,0.6911,2449.8,2449.6,0.81604]
[1749183676852,0.6911,2449.8,2449.2,2.4282382]
[1749183676853,0.81604,2449.7,2449.2,2.4282382]
[1749183677049,1.50711,2449.8,2449.5,0.81607]
[1749183677251,0.6911,2449.8,2449.6,0.81606]
[1749183678760,3.21392207,2449.9,2449.8,0.81599]
[1749183678961,0.00612207,2449.9,2449.8,0.81599]
[1749183679250,0.00612207,2449.9,2449.7,0.81601]
[1749183679453,0.00612207,2449.9,2449.8,0.07133351]
[1749183680457,0.00612207,2449.9,2449.7,0.81601]
[1749183680657,0.00612207,2449.9,2449.8,0.81599]
[1749183680853,0.00612207,2449.9,2449.5,3.01112812]
[1749183681058,0.00612207,2449.9,2449.6,0.81606]
[1749183681263,0.00612207,2449.9,2449.7,0.81603]
[1749183681649,0.00612207,2449.9,2449.5,3.01112812]